bitfinex/quotes_ETHUSD_20250504
["timestamp","ask_amount","ask_price","bid_price","bid_amount"]
[1746342452360,0.81315248,1846.2,1846.1,5.83024255]
[1746342456561,6.22968373,1846.2,1846.1,1.35724255]
[1746342456951,0.81315248,1846.2,1846.1,1.35724255]
[1746342460746,0.81315248,1846.2,1846.1,1.6620367]
[1746342472147,6.22968373,1846.2,1846.1,1.6620367]
[1746342478179,0.81315248,1846.2,1846.1,1.6620367]
[1746342485606,6.22968373,1846.2,1846.1,1.6620367]
[1746342486694,0.81315248,1846.2,1846.1,1.6620367]
[1746342487006,6.22968373,1846.2,1846.1,1.6620367]
[1746342490107,5.72146948,1846.2,1846.1,1.6620367]
[1746342490281,6.22984054,1846.2,1846.1,1.6620367]
[1746342494514,0.81330929,1846.2,1846.1,1.6620367]
[1746342497612,6.22984054,1846.2,1846.1,1.6620367]
[1746342504736,0.81330929,1846.2,1846.1,1.6620367]
[1746342504926,6.22984054,1846.2,1846.1,1.6620367]
[1746342505326,6.22984054,1846.2,1846.1,0.30479415]
[1746342506017,0.81330929,1846.2,1846.1,1.6620367]
[1746342509337,6.22984054,1846.2,1846.1,0.30479415]
[1746342514423,0.81330929,1846.2,1846.1,0.30479415]
[1746342522243,6.22984054,1846.2,1846.1,0.30479415]
[1746342525575,0.81330929,1846.2,1846.1,0.30479415]
[1746342525870,0.81330929,1846.2,1846.1,1.6620367]
[1746342540882,0.50837106,1846.2,1846.1,1.6620367]
[1746342542000,6.22992391,1846.2,1846.1,1.6620367]
[1746342542195,7.47782208,1846.2,1846.1,1.6620367]
[1746342544275,6.22992391,1846.2,1846.1,1.6620367]
[1746342544482,6.22992391,1846.2,1846.1,0.30479415]
[1746342544706,7.05392391,1846.2,1846.1,0.30479415]
[1746342545005,5.41705323,1846.1,1845.9,5.82324255]
[1746342545199,0.50837106,1846.0,1845.9,5.82324255]
[1746342545404,5.92548915,1846.0,1845.9,5.82324255]
[1746342545706,0.50837106,1846.0,1845.9,5.82324255]
[1746342550705,0.50837106,1846.0,1845.9,6.1313236]
[1746342560149,0.50837106,1846.0,1845.9,6.81947596]
[1746342560354,5.41635777,1846.3,1845.9,12.23688752]
[1746342560515,10.83243381,1846.4,1846.2,1.35724255]
[1746342560715,5.41620817,1846.4,1846.3,1.66061101]
[1746342560950,6.57702512,1846.4,1846.3,1.66061101]
[1746342561151,7.08483725,1846.4,1846.3,1.66061101]
[1746342561450,7.38952176,1846.4,1846.3,1.66061101]
[1746342566166,6.22870481,1846.4,1846.3,0.30336846]
[1746342566825,5.41623788,1846.3,1846.2,1.35724255]
[1746342567226,5.41623788,1846.3,1846.2,1.66079802]
[1746342567437,5.92405001,1846.3,1846.2,1.66079802]
[1746342567863,6.22873452,1846.3,1846.2,1.66079802]
[1746342568071,0.81249664,1846.3,1846.2,1.66079802]
[1746342568566,6.22873452,1846.3,1846.2,1.66079802]
[1746342575138,5.92405001,1846.3,1846.2,1.66079802]
[1746342576871,6.22867038,1846.3,1846.2,1.66079802]
[1746342590781,6.22867038,1846.3,1846.2,0.30355547]
[1746342590979,5.41653125,1846.2,1846.1,1.45406455]
[1746342591275,5.92434338,1846.2,1846.1,1.45406455]
[1746342591492,5.92434338,1846.2,1846.1,1.75966745]
[1746342591875,6.22896375,1846.2,1846.1,1.75966745]
[1746342594583,0.8124325,1846.2,1846.1,1.75966745]
[1746342596900,0.50781213,1846.2,1846.1,1.75966745]
[1746342598207,0.50781213,1846.2,1846.1,2.4625642]
[1746342599612,0.50781213,1846.2,1846.1,6.9245642]
[1746342600805,0.50781213,1846.2,1846.1,14.53029608]
[1746342601005,0.50781213,1846.6,1846.2,5.41636524]
[1746342601305,5.92319558,1846.6,1846.5,1.35724255]
[1746342601484,6.96024299,1846.6,1846.5,1.35724255]
[1746342602184,7.26497127,1846.6,1846.5,1.35724255]
[1746342603736,6.96024299,1846.6,1846.5,1.35724255]
[1746342604025,6.96024299,1846.6,1846.4,1.35724255]
[1746342604520,0.50781213,1846.5,1846.4,1.35724255]
[1746342604912,5.92346336,1846.5,1846.4,1.35724255]
[1746342605124,0.50781213,1846.5,1846.4,1.35724255]
[1746342606105,5.92346336,1846.5,1846.4,1.35724255]
[1746342606730,5.41599208,1846.4,1846.3,1.35724255]
[1746342607032,5.92380421,1846.4,1846.3,1.35724255]
[1746342609937,0.50781213,1846.4,1846.3,1.35724255]
[1746342611032,0.50781213,1846.4,1846.3,2.14144255]
[1746342611402,5.41551392,1846.6,1846.3,2.14144255]
[1746342611604,5.41551392,1846.6,1846.5,1.35724255]
[1746342611805,5.92286698,1846.6,1846.5,1.35724255]
[1746342618440,5.41565123,1846.5,1846.4,1.35724255]
[1746342619640,5.92286684,1846.5,1846.4,1.35724255]
[1746342619841,0.50721561,1846.5,1846.4,1.35724255]
[1746342620143,5.41553436,1846.6,1846.4,1.35724255]
[1746342620441,10.83115055,1846.6,1846.4,1.35724255]
[1746342620839,5.41553436,1846.6,1846.4,1.35724255]
[1746342621611,0.50729341,1846.5,1846.4,1.35724255]
[1746342622749,5.41553436,1846.6,1846.4,1.35724255]
[1746342623848,5.41553436,1846.6,1846.5,1.35724255]
[1746342624037,5.92294239,1846.6,1846.5,1.35724255]
[1746342626051,6.22747408,1846.6,1846.5,1.35724255]
[1746342626549,5.41578786,1846.5,1846.4,1.35724255]
[1746342627127,5.92319589,1846.5,1846.4,1.35724255]
[1746342629860,6.22799585,1846.5,1846.4,1.35724255]
[1746342632348,0.50740803,1846.5,1846.4,1.35724255]
[1746342632751,0.50740803,1846.5,1846.4,2.11364255]
[1746342633928,0.50740803,1846.5,1846.4,2.7710068]
[1746342637643,3.63687854,1846.9,1846.4,4.18240267]
[1746342637956,3.63687854,1846.9,1846.8,1.35724255]
[1746342638142,3.63687854,1846.9,1846.8,7.1744851]
[1746342638342,3.63687854,1846.9,1846.8,5.81724255]
[1746342639564,3.63687854,1846.9,1846.8,6.04212268]
[1746342641690,3.63687854,1846.9,1846.6,0.793]
[1746342641691,5.41483003,1846.8,1846.6,0.793]
[1746342641856,5.41483003,1846.8,1846.6,6.04212268]
[1746342641857,5.41506471,1846.7,1846.6,6.04212268]
[1746342642586,5.41506471,1846.7,1846.6,4.46]
[1746342643979,5.71927023,1846.7,1846.6,4.46]
[1746342645002,5.4155729,1846.6,1846.4,1.58212268]
[1746342645379,5.4155729,1846.6,1846.4,2.19155056]
[1746342645563,5.71944613,1846.7,1846.4,2.19155056]
[1746342645876,5.41524061,1846.7,1846.4,2.19155056]
[1746342647275,5.41546074,1846.6,1846.4,1.58212268]
[1746342648978,5.41565123,1846.5,1846.4,1.58212268]
[1746342659584,5.41552585,1846.6,1846.4,1.58212268]
[1746342660974,5.41565123,1846.5,1846.4,1.58212268]
[1746342671544,5.41565123,1846.5,1846.4,1.35677527]
[1746342671844,5.72051456,1846.5,1846.4,1.35677527]
[1746342674255,5.41594454,1846.4,1846.3,4.458]
[1746342674537,5.41623788,1846.3,1846.2,1.35677527]
[1746342674741,5.41623788,1846.3,1846.2,5.81477527]
[1746342676244,5.41613893,1846.4,1846.2,5.81477527]
[1746342676443,5.41613893,1846.4,1846.3,1.35677527]
[1746342677136,5.41583773,1846.5,1846.3,1.35677527]
[1746342677427,5.41583773,1846.5,1846.4,1.35677527]
[1746342677631,5.41583773,1846.5,1846.3,1.58301753]
[1746342680536,5.41549177,1846.6,1846.3,1.58301753]
[1746342680744,5.41549177,1846.6,1846.5,1.58301753]
[1746342681311,5.72035225,1846.6,1846.5,1.58301753]
[1746342682143,5.72035225,1846.6,1846.2,5.85855973]
[1746342682309,5.41588387,1846.5,1846.3,1.58301753]
[1746342682643,5.41594454,1846.4,1846.3,1.58301753]
[1746342683541,5.72081475,1846.4,1846.3,1.58301753]
[1746342684396,5.41594454,1846.4,1846.3,1.58301753]
[1746342689401,5.72076319,1846.4,1846.3,1.58301753]
[1746342699018,5.41653125,1846.2,1846.1,6.13783953]
[1746342699311,5.41653125,1846.2,1846.1,6.44271443]
[1746342699519,5.41653125,1846.2,1846.1,0.4016969]
[1746342699892,5.72131093,1846.2,1846.1,0.4016969]
[1746342705533,5.41653125,1846.2,1846.1,0.4016969]
[1746342706130,6.23158315,1846.4,1846.1,0.4016969]
[1746342706307,5.41612554,1846.4,1846.3,2.35331753]
[1746342706506,5.41572395,1846.5,1846.3,2.55556317]
[1746342707407,5.41549305,1846.6,1846.3,2.55556317]
[1746342707612,5.41549305,1846.6,1846.5,1.58301753]
[1746342707935,5.41549305,1846.6,1846.5,1.74178609]
[1746342708434,5.71997552,1846.6,1846.5,1.74178609]
[1746342712338,0.30448247,1846.6,1846.5,1.74178609]
[1746342712727,0.30448247,1846.6,1846.5,2.54598609]
[1746342715035,5.71984042,1846.6,1846.5,2.54598609]
[1746342715233,5.71984042,1846.6,1846.5,1.74178609]
[1746342723547,5.71984042,1846.6,1846.5,0.15876856]
[1746342723749,11.13545505,1846.6,1846.3,5.2453]
[1746342723923,0.30448247,1846.5,1846.4,0.15801263]
[1746342724751,5.41535795,1846.6,1846.4,0.15801263]
[1746342728956,5.41519822,1846.7,1846.4,1.74103016]
[1746342729451,5.41519822,1846.7,1846.5,0.8052]
[1746342729619,0.30438491,1846.6,1846.5,0.8052]
[1746342730735,0.30438491,1846.6,1846.5,0.96287656]
[1746342732561,5.71974286,1846.6,1846.5,0.15767656]
[1746342738330,0.30438491,1846.6,1846.5,0.15767656]
[1746342739471,5.71974286,1846.6,1846.5,0.15767656]
[1746342746277,0.30438491,1846.6,1846.5,0.95267656]
[1746342746780,0.30438491,1846.6,1846.5,2.30950516]
[1746342746982,0.30438491,1846.6,1846.5,3.08745437]
[1746342753672,0.30438491,1846.6,1846.5,8.5031056]
[1746342754364,0.30438491,1846.6,1846.5,3.08745437]
[1746342754687,0.30438491,1846.6,1846.5,1.51450516]
[1746342755790,0.30438491,1846.6,1846.5,5.96950516]
[1746342761098,0.30438491,1846.6,1846.5,11.38515639]
[1746342761409,0.30438491,1846.6,1846.5,12.19825639]
[1746342761695,0.8289,1847.1,1846.7,6.22795554]
[1746342762017,0.30473121,1847.0,1846.9,1.3568286]
[1746342762590,0.30473121,1847.0,1846.9,1.50956256]
[1746342762819,0.30473121,1847.0,1846.9,6.97818422]
[1746342762980,0.30473121,1847.0,1846.9,7.79128422]
[1746342763185,0.30473121,1847.0,1846.9,12.24628422]
[1746342763491,0.8289,1847.3,1846.9,14.38120475]
[1746342763882,5.41325285,1847.4,1847.0,5.41416994]
[1746342764278,0.30432023,1847.3,1847.1,7.04984397]
[1746342764522,0.30432023,1847.3,1847.1,7.85464397]
[1746342765226,6.24286922,1847.5,1847.1,9.18152536]
[1746342766091,0.30393192,1847.4,1847.1,9.18152536]
[1746342767116,6.24286922,1847.5,1847.1,9.18152536]
[1746342770586,5.41301397,1847.4,1847.1,2.90871242]
[1746342770915,5.4140889,1847.1,1846.9,4.452]
[1746342771119,5.41343656,1847.3,1846.9,5.2145]
[1746342771427,5.41343656,1847.3,1846.9,6.79633103]
[1746342772121,5.41343656,1847.3,1846.9,5.2145]
[1746342772319,5.41374944,1847.2,1846.9,5.2145]
[1746342774421,10.82699567,1847.3,1846.9,5.2145]
[1746342774598,5.41343656,1847.3,1846.9,5.2145]
[1746342775085,5.41374006,1847.2,1846.9,5.2145]
[1746342780140,5.41346798,1847.3,1846.9,10.62894635]
[1746342780333,5.41346798,1847.3,1846.9,12.39148006]
[1746342782139,5.4131595,1847.4,1847.0,5.41417645]
[1746342782439,5.4131595,1847.4,1847.1,0.7625]
[1746342782603,10.82643907,1847.4,1847.1,0.7625]
[1746342783007,5.4133273,1847.3,1847.1,0.7625]
[1746342785741,5.41311917,1847.4,1847.1,0.7625]
[1746342785914,5.41285822,1847.5,1847.2,1.58183103]
[1746342786345,0.30377141,1847.4,1847.2,1.58183103]
[1746342787227,5.41285822,1847.5,1847.2,1.58183103]
[1746342787534,5.41311185,1847.4,1847.1,1.54375406]
[1746342791551,5.4128725,1847.5,1847.1,1.54375406]
[1746342791730,0.30437769,1847.3,1847.1,6.95752704]
[1746342791919,0.30437769,1847.3,1847.2,0.6957527]
[1746342792448,0.30437769,1847.3,1847.2,6.10935166]
[1746342792650,0.8,1847.7,1847.2,0.6957527]
[1746342792853,5.41235815,1847.7,1847.4,1.58183103]
[1746342793253,0.30437044,1847.6,1847.4,1.58183103]
[1746342793747,0.30437044,1847.6,1847.4,6.99483302]
[1746342793960,5.41199611,1847.8,1847.4,6.99483302]
[1746342794318,5.41199611,1847.8,1847.4,8.75821643]
[1746342794564,5.41199611,1847.8,1847.5,0.827]
[1746342794722,0.30420355,1847.7,1847.5,0.88112148]
[1746342795634,5.41189887,1847.8,1847.5,0.88112148]
[1746342795834,5.41189887,1847.8,1847.5,0.827]
[1746342796151,5.41189887,1847.8,1847.5,1.78551192]
[1746342797564,0.30395166,1847.7,1847.5,1.78551192]
[1746342798161,5.41189887,1847.8,1847.5,1.78551192]
[1746342799729,5.41214339,1847.7,1847.4,1.58183103]
[1746342801261,5.41201462,1847.8,1847.4,1.58183103]
[1746342801435,5.41215136,1847.7,1847.4,1.58183103]
[1746342803346,5.41201462,1847.8,1847.4,1.58183103]
[1746342803865,5.41139258,1848.0,1847.6,6.9941913]
[1746342804169,5.41085451,1848.2,1847.8,6.99366697]
[1746342804332,5.41085451,1848.2,1847.9,0.8269]
[1746342804529,0.30360703,1848.1,1848.0,1.6359412]
[1746342804744,0.30360703,1848.1,1848.0,7.04702995]
[1746342805071,0.30360703,1848.1,1848.0,9.20246636]
[1746342805235,3.64191256,1848.3,1848.1,0.8269]
[1746342805776,3.64191256,1848.3,1848.2,5.41066984]
[1746342806135,3.64191256,1848.3,1848.2,9.85966984]
[1746342806871,3.64191256,1848.3,1848.2,12.32249833]
[1746342807176,0.00807769,1848.4,1848.2,12.32249833]
[1746342807177,0.00807769,1848.4,1848.3,5.4103771]
[1746342808370,0.00807769,1848.4,1848.3,5.46447202]
[1746342809137,0.00807769,1848.4,1848.3,0.85709492]
[1746342809375,0.00807769,1848.4,1848.3,0.803]
[1746342810881,0.00807769,1848.4,1848.3,6.2133771]
[1746342811040,0.00807769,1848.4,1848.3,8.21027137]
[1746342812274,5.42003582,1849.5,1849.0,5.40820156]
[1746342812572,5.41992715,1849.5,1849.1,12.29493858]
[1746342812738,5.41992715,1849.5,1849.1,12.24086407]
[1746342813172,0.01304899,1849.5,1849.1,12.24086407]
[1746342813475,9.04907193,1849.4,1849.1,6.83283103]
[1746342813671,3.64191256,1849.4,1849.2,0.6832831]
[1746342815456,5.4071636,1849.4,1849.2,0.6832831]
[1746342815683,5.40745146,1849.3,1849.2,0.6832831]
[1746342815891,5.40728895,1849.4,1849.1,6.886902]
[1746342820670,5.40749778,1849.3,1849.1,6.886902]
[1746342820990,5.40735006,1849.4,1849.1,6.83283103]
[1746342821897,5.40705334,1849.5,1849.1,6.83283103]
[1746342822261,5.40721452,1849.4,1849.1,6.83283103]
[1746342822460,5.40721452,1849.4,1849.1,8.05692438]
[1746342822700,5.40721452,1849.4,1849.1,8.1109984]
[1746342823209,5.40722252,1849.4,1849.1,8.1109984]
[1746342826700,5.40722252,1849.4,1849.1,6.52916737]
[1746342827301,5.40704236,1849.5,1849.1,11.93719852]
[1746342827600,10.81417331,1849.5,1849.2,1.19371985]
[1746342827765,5.40704236,1849.5,1849.2,1.19371985]
[1746342827968,10.81416428,1849.5,1849.3,4.446]
[1746342828168,5.40715907,1849.4,1849.3,4.446]
[1746342828497,5.40676202,1849.6,1849.3,4.446]
[1746342828799,5.40676202,1849.6,1849.3,5.70892668]
[1746342829500,0.8144,1849.7,1849.3,4.446]
[1746342829501,5.40690748,1849.5,1849.3,4.446]
[1746342830485,5.40672844,1849.6,1849.4,0.7873]
[1746342830695,10.81300821,1849.7,1849.4,0.7873]
[1746342831594,5.40659474,1849.6,1849.4,0.7873]
[1746342832178,5.40658518,1849.6,1849.4,0.7873]
[1746342832678,5.40657592,1849.6,1849.4,0.7873]
[1746342833180,5.40657592,1849.6,1849.4,1.31063]
[1746342833718,5.40686672,1849.5,1849.4,1.31063]
[1746342834312,5.40674067,1849.6,1849.4,1.31063]
[1746342836022,5.40686672,1849.5,1849.4,1.31063]
[1746342836526,5.40686672,1849.5,1849.3,4.446]
[1746342839394,5.40715907,1849.4,1849.2,0.8323]
[1746342839691,5.40702273,1849.5,1849.3,4.473]
[1746342840091,5.40715907,1849.4,1849.2,0.8323]
[1746342840312,5.40745146,1849.3,1849.2,4.473]
[1746342840832,5.71111405,1849.3,1849.2,4.473]
[1746342841321,0.30366259,1849.3,1849.2,4.473]
[1746342842828,5.71111405,1849.3,1849.2,4.473]
[1746342846423,6.47031405,1849.3,1849.2,4.473]
[1746342846733,5.40815264,1849.1,1849.0,4.473]
[1746342847037,5.40785376,1849.2,1849.0,4.473]
[1746342847743,0.30366259,1849.1,1849.0,4.473]
[1746342848518,5.40757838,1849.3,1849.0,4.473]
[1746342848719,5.40785249,1849.2,1849.0,4.473]
[1746342850713,5.40757838,1849.3,1849.0,4.473]
[1746342850913,5.40784916,1849.2,1849.0,4.473]
[1746342851530,5.40803634,1849.1,1849.0,4.473]
[1746342851724,5.71211677,1849.1,1849.0,4.473]
[1746342852444,6.16712322,1849.2,1849.0,4.473]
[1746342852746,5.40803634,1849.1,1849.0,4.473]
[1746342853834,5.71203278,1849.1,1848.7,0.05408455]
[1746342854144,5.71203278,1849.1,1848.8,4.473]
[1746342854342,11.12032206,1849.1,1848.8,4.473]
[1746342854544,5.71203278,1849.1,1848.7,2.78652082]
[1746342854708,11.12032161,1849.1,1848.9,4.473]
[1746342854908,5.40832882,1849.0,1848.7,2.78652082]
[1746342855209,5.40832882,1849.0,1848.8,4.75165208]
[1746342856048,5.40803634,1849.1,1848.8,4.75165208]
[1746342856355,5.40803634,1849.1,1848.7,2.73243627]
[1746342856356,5.40862134,1848.9,1848.7,2.73243627]
[1746342856513,6.23322134,1848.9,1848.8,4.473]
[1746342858311,6.53700294,1848.9,1848.8,4.473]
[1746342859065,6.23322134,1848.9,1848.8,4.473]
[1746342864064,5.40862134,1848.9,1848.8,4.473]
[1746342871647,5.71237972,1848.9,1848.8,4.473]
[1746342876061,0.30375838,1848.9,1848.8,5.7515]
[1746342876263,5.40814843,1849.1,1848.8,5.7515]
[1746342877960,10.81642538,1849.1,1848.8,5.7515]
[1746342878259,10.81643651,1849.1,1848.8,5.7515]
[1746342878455,5.40814843,1849.1,1848.8,5.7515]
[1746342879677,10.81644549,1849.1,1848.9,0.57515]
[1746342879828,5.40814843,1849.1,1848.9,0.57515]
[1746342891784,5.40814105,1849.1,1848.9,0.57515]
[1746342894656,5.40814105,1849.1,1849.0,4.459]
[1746342895789,5.71226938,1849.1,1849.0,4.459]
[1746342898292,0.30412833,1849.1,1849.0,4.459]
[1746342898463,5.71216467,1849.1,1849.0,4.459]
[1746342902672,5.71216467,1849.1,1849.0,4.962415]
[1746342902673,0.30412833,1849.1,1849.0,4.962415]
[1746342902996,3.64191256,1849.5,1849.0,4.962415]
[1746342902997,9.04889317,1849.5,1849.1,6.21109187]
[1746342903186,9.04889317,1849.5,1849.1,7.61838451]
[1746342904001,3.64191256,1849.5,1849.2,5.40759328]
[1746342904206,3.64191256,1849.5,1849.3,0.7573]
[1746342904393,3.64191256,1849.5,1849.4,4.459]
[1746342904595,3.64191256,1849.5,1849.4,4.98063]
[1746342905788,5.40661696,1849.6,1849.4,4.98063]
[1746342906572,0.30384733,1849.5,1849.4,4.98063]
[1746342907272,5.40661696,1849.6,1849.4,4.98063]
[1746342907911,5.40651908,1849.7,1849.4,4.98063]
[1746342907912,5.40649512,1849.7,1849.4,4.98063]
[1746342908110,5.40649512,1849.7,1849.5,0.498063]
[1746342908807,0.30370716,1849.6,1849.5,0.498063]
[1746342911010,5.40657439,1849.6,1849.5,0.498063]
[1746342911203,5.40657439,1849.6,1849.4,4.98063]
[1746342912676,5.40682963,1849.6,1849.4,4.98063]
[1746342912875,5.40686672,1849.5,1849.4,4.459]
[1746342913291,5.40674502,1849.6,1849.4,4.459]
[1746342914119,5.40686672,1849.5,1849.4,4.459]
[1746342914618,5.40675729,1849.6,1849.4,4.459]
[1746342915315,5.40686672,1849.5,1849.4,4.459]
[1746342917017,5.40677365,1849.6,1849.4,4.459]
[1746342917522,5.40681845,1849.6,1849.4,4.459]
[1746342917720,5.40686672,1849.5,1849.1,6.20812385]
[1746342917911,5.40716653,1849.4,1849.2,4.458]
[1746342918108,5.40745146,1849.3,1849.2,4.458]
[1746342919690,6.21616668,1849.4,1848.9,20.2571]
[1746342919691,5.40832882,1849.0,1848.9,19.495]
[1746342919905,5.40862134,1848.9,1848.8,4.455]
[1746342922711,6.21752134,1848.9,1848.8,4.455]
[1746342923111,12.25644302,1849.3,1848.8,4.9005]
[1746342923434,5.40862134,1848.9,1848.8,4.455]
[1746342942164,5.71197709,1848.9,1848.8,4.455]
[1746342943475,5.40972213,1848.6,1848.3,0.79]
[1746342943673,5.40972213,1848.6,1848.4,4.456]
[1746342944569,5.40979172,1848.5,1848.4,4.456]
[1746342944774,5.40979172,1848.5,1848.4,4.9806]
[1746342946383,5.40979172,1848.5,1848.4,4.456]
[1746342946700,5.40979172,1848.5,1848.3,0.79]
[1746342946876,5.40979172,1848.5,1848.4,4.456]
[1746342947379,5.41066984,1848.2,1848.1,20.284]
[1746342947567,5.41066984,1848.2,1848.1,26.92619666]
[1746342948081,5.41066984,1848.2,1848.1,19.494]
[1746342952290,5.41066984,1848.2,1847.9,4.476]
[1746342952291,5.41137861,1848.0,1847.9,4.476]
[1746342952773,5.41200527,1847.8,1847.7,4.476]
[1746342954366,5.41174596,1847.9,1847.7,4.476]
[1746342954367,5.4115895,1847.9,1847.7,4.476]
[1746342956974,5.4115895,1847.9,1847.7,5.00244]
[1746342961670,5.41170966,1847.9,1847.7,5.00244]
[1746342961994,5.4118411,1847.8,1847.7,5.00244]
[1746342962161,5.4118411,1847.8,1847.7,4.476]
[1746342963402,5.41176105,1847.9,1847.7,4.476]
[1746342964792,5.41138576,1848.0,1847.8,0.8035]
[1746342966091,5.41079312,1848.2,1847.8,6.26934457]
[1746342966256,5.41079312,1848.2,1847.8,6.21522715]
[1746342966458,5.41079312,1848.2,1847.8,7.8255612]
[1746342968892,5.41048328,1848.3,1847.9,6.21497929]
[1746342969361,10.82113511,1848.3,1847.9,0.8035]
[1746342970194,5.41048328,1848.3,1847.9,6.21502403]
[1746342970500,5.41027387,1848.4,1848.0,0.05410653]
[1746342970799,10.82060378,1848.4,1848.1,5.2805]
[1746342971117,5.41037805,1848.3,1848.1,5.2805]
[1746342971763,5.41024541,1848.4,1848.1,5.80855]
[1746342971965,0.7622,1848.7,1848.1,5.05915384]
[1746342972166,5.40933034,1848.7,1848.3,6.21377487]
[1746342972367,5.40933034,1848.7,1848.3,0.85759699]
[1746342972567,5.40951855,1848.6,1848.3,0.8035]
[1746342973203,5.40838829,1849.0,1848.3,0.8035]
[1746342973204,5.40855891,1849.0,1848.5,6.21310847]
[1746342973369,5.4086297,1848.9,1848.6,4.477]
[1746342973987,5.40851105,1849.0,1848.6,4.477]
[1746342975664,5.40832882,1849.0,1848.6,4.477]
[1746342977973,5.40832882,1849.0,1848.6,9.88646579]
[1746342978806,5.40832882,1849.0,1848.6,4.477]
[1746342979008,5.40832882,1849.0,1848.7,0.4477]
[1746342979303,5.40832882,1849.0,1848.8,0.819]
[1746342979908,0.7622,1849.2,1848.8,0.819]
[1746342980111,5.71116,1849.1,1848.8,0.819]
[1746342981011,5.40819711,1849.1,1848.8,0.819]
[1746342981723,5.40844684,1849.0,1848.8,0.819]
[1746342984517,5.35844684,1849.0,1848.8,0.819]
[1746342989000,5.35844684,1849.0,1848.7,0.4477]
[1746342992131,5.40818904,1849.1,1848.7,5.85688278]
[1746342992432,5.40818904,1849.1,1848.7,0.4477]
[1746342992739,5.4083584,1849.0,1848.8,0.7789]
[1746342995124,5.40862134,1848.9,1848.8,0.7789]
[1746342996826,5.40851147,1849.0,1848.8,0.7789]
[1746343000027,5.40851147,1849.0,1848.8,5.2649]
[1746343000228,0.30400541,1848.9,1848.8,5.2649]
[1746343001858,0.30400541,1848.9,1848.8,4.486]
[1746343006963,5.71262675,1848.9,1848.8,4.486]
[1746343007175,6.82473416,1848.9,1848.5,6.24186988]
[1746343007329,5.71262675,1848.9,1848.6,4.486]
[1746343007530,5.71262675,1848.9,1848.6,4.5400889]
[1746343008045,0.30400541,1848.8,1848.6,4.5400889]
[1746343008645,0.30400541,1848.7,1848.6,4.5400889]
[1746343009987,11.59804009,1849.0,1848.6,9.94958798]
[1746343010337,6.18947187,1849.0,1848.6,9.94958798]
[1746343010689,0.30451149,1848.9,1848.6,9.94958798]
[1746343010836,0.30451149,1848.9,1848.7,4.467]
[1746343011370,5.71313284,1848.9,1848.7,4.467]
[1746343011566,0.30451149,1848.8,1848.7,4.467]
[1746343016968,6.47282538,1848.8,1848.7,4.467]
[1746343017144,1.06391149,1848.8,1848.7,4.467]
[1746343017339,0.30451149,1848.8,1848.7,4.467]
[1746343026705,0.30451149,1848.8,1848.7,5.7363]
[1746343026998,0.30451149,1848.8,1848.7,11.14550646]
[1746343027815,5.40835182,1849.0,1848.7,5.7363]
[1746343028327,5.40849501,1849.0,1848.7,5.7363]
[1746343028470,0.30444972,1848.9,1848.7,5.2896]
[1746343029268,0.30444972,1848.8,1848.7,5.2896]
[1746343030065,0.30444972,1848.8,1848.7,4.467]
[1746343052415,5.40998319,1848.5,1848.3,4.453]
[1746343052745,6.19012426,1848.5,1848.3,4.453]
[1746343052942,0.30444972,1848.4,1848.3,5.26103965]
[1746343054549,6.19808439,1848.4,1848.2,3.62739647]
[1746343054725,6.1983771,1848.3,1848.2,3.62739647]
[1746343055452,6.50239042,1848.3,1848.2,3.62739647]
[1746343055948,5.41077197,1848.2,1847.9,4.453]
[1746343056247,5.41077197,1848.2,1847.9,5.8022233]
[1746343056424,5.41099526,1848.1,1847.9,5.8022233]
[1746343056821,5.41125541,1848.0,1847.9,4.453]
[1746343057134,6.19925541,1848.0,1847.9,4.453]
[1746343057810,5.41154824,1847.9,1847.8,3.62739647]
[1746343058412,6.50305295,1848.0,1847.8,3.62739647]
[1746343058813,5.41154824,1847.9,1847.8,3.62739647]
[1746343059036,6.1993678,1848.0,1847.8,3.62739647]
[1746343059851,0.788,1848.0,1847.8,3.62739647]
[1746343060154,0.788,1848.0,1847.6,9.86642365]
[1746343060323,0.788,1848.0,1847.7,0.98664237]
[1746343060940,0.7764,1848.1,1847.7,1.81334237]
[1746343061251,6.18758021,1848.1,1847.7,1.81334237]
[1746343061654,11.59883015,1848.1,1847.7,1.81334237]
[1746343062245,5.41125744,1848.0,1847.7,1.81334237]
[1746343063855,5.41148693,1848.0,1847.7,0.98664237]
[1746343064022,5.41169321,1847.9,1847.6,4.454]
[1746343066659,5.412134,1847.7,1847.6,4.454]
[1746343067165,6.18842481,1847.8,1847.6,4.454]
[1746343068158,0.7764,1847.8,1847.6,4.454]
[1746343069255,5.41168957,1847.9,1847.6,4.454]
[1746343072063,10.82351942,1847.9,1847.6,4.454]
[1746343072766,5.41186586,1847.8,1847.6,4.454]
[1746343077767,5.41186586,1847.8,1847.5,5.2632]
[1746343078073,5.41186586,1847.8,1847.5,6.33081601]
[1746343078379,5.41173794,1847.9,1847.5,6.38493651]
[1746343078688,5.41173794,1847.9,1847.5,13.37806682]
[1746343078871,5.41173794,1847.9,1847.5,13.32394632]
[1746343079184,5.41173794,1847.9,1847.6,0.05411899]
[1746343079388,5.41173794,1847.9,1847.6,0.05411875]
[1746343079542,5.41142284,1848.0,1847.7,0.7926]
[1746343081281,5.41157753,1847.9,1847.7,0.7926]
[1746343081502,5.41157753,1847.9,1847.6,1.33780651]
[1746343081503,5.41139004,1848.0,1847.6,1.33780651]
[1746343081647,5.41167574,1847.9,1847.6,1.39192321]
[1746343081847,5.41167574,1847.9,1847.6,1.33780651]
[1746343085581,0.30436324,1847.8,1847.6,1.33780651]
[1746343086196,5.71626396,1847.8,1847.6,1.33780651]
[1746343086356,5.41190072,1847.8,1847.6,1.33780651]
[1746343087264,0.30446818,1847.7,1847.6,1.33780651]
[1746343087756,0.30446818,1847.7,1847.5,6.32821601]
[1746343088095,5.41190072,1847.8,1847.5,6.32821601]
[1746343089696,0.30451415,1847.7,1847.5,6.32821601]
[1746343090393,5.41190072,1847.8,1847.5,6.32821601]
[1746343090796,5.41190072,1847.8,1847.5,5.2606]
[1746343091900,0.30456438,1847.7,1847.5,5.2606]
[1746343092195,0.30456438,1847.7,1847.6,4.468]
[1746343094680,5.71669838,1847.7,1847.6,4.468]
[1746343095271,0.30456438,1847.7,1847.6,4.468]
[1746343095796,5.71669838,1847.7,1847.6,4.468]
[1746343096972,5.41248659,1847.6,1847.5,4.468]
[1746343097985,5.71705097,1847.6,1847.5,4.468]
[1746343100607,0.30456438,1847.6,1847.5,4.468]
[1746343105593,0.30456438,1847.6,1847.5,4.9148]
[1746343105993,0.30456438,1847.7,1847.5,4.9148]
[1746343106393,0.30456438,1847.7,1847.5,4.96892091]
[1746343106820,6.21939656,1847.8,1847.5,4.96892091]